Cogmind - Beta 14 @@@ ROGUE MODE // 2025.03.05 @ 16:42:18 Player: Udabudha Result: Destroyed by Y-54 Guardian with Gatling Laser Performance ------------- Evolutions (3) 1500 Regions Visited (8) 1600 Robots Destroyed (25) 125 Value Destroyed (996) 996 Prototype IDs (0) 0 Alien Tech Used (0) 0 Bonus (22) 22 TOTAL SCORE: 4243 Bonus ------- High Alert Combat Kills 22 Cogmind --------- Core Integrity 0/700 Matter 300/300 Energy 299/300 System Corruption 13% Temperature Cool (12) Movement Core (100) Ox1 Location -7/Lower Caves Parts ------- > --- POWER (1) -------- (None) > --- PROPULSION (5) --- (None) > --- UTILITY (4) ------ Compact Battery Targeting Computer Advanced ECM Suite > --- WEAPON (3) ------- (None) > --- INVENTORY (5) ---- Light Ion Engine Improved Ion Engine Energy Filter Improved Utility Shielding Pulse Rifle Peak State ------------ > --- POWER ------------ Micro Nuclear Core > --- PROPULSION ------- Aluminum Leg Aluminum Leg Aluminum Leg Carbon-fiber Leg Carbon-fiber Leg > --- UTILITY ---------- Improved Heat Sink Small Storage Unit Improved Sensor Array Particle Charger > --- WEAPON ----------- Lightning Gun Particle Gun Spread Laser > --- INVENTORY -------- Light Ion Engine Improved Ion Engine Micro Nuclear Core Wheel Advanced ECM Suite EM Shotgun Lightning Gun EMP Blaster [Rating: 33] Favorites ----------- Power Micro Nuclear Core Engine Ion Engine Power Core Micro Nuclear Core Propulsion Aluminum Leg Leg Aluminum Leg Wheel Wheel Utility Small Storage Unit Device Improved Heat Sink Storage Small Storage Unit Processor Signal Interpreter Weapon Lightning Gun Energy Gun Lightning Gun Ballistic Gun Assault Rifle Launcher EMP Blaster Build | -11 -10 -10 -9 -8 -7 -7 -7 -7 ------- Run | Yrd Mat Min Mat Mat Fac Was Fac Low Slots Evolved 6 | . . . 2 2 2 . . . Power . | . . . . . . . . . Propulsion 3 | . . . 1 1 1 . . . Utility 2 | . . . . 1 1 . . . Weapon 1 | . . . 1 . . . . . Parts Attached 52 | 6 2 . 13 17 4 3 4 3 Power 8 | . . . 2 3 1 . 1 1 Engine 3 | . . . 2 1 . . . . Core 5 | . . . . 2 1 . 1 1 Reactor . | . . . . . . . . . Propulsion 16 | 2 . . 4 8 1 1 . . Treads . | . . . . . . . . . Leg 15 | 2 . . 4 8 1 . . . Wheel 1 | . . . . . . 1 . . Hover . | . . . . . . . . . Flight . | . . . . . . . . . Utility 10 | 1 1 . 2 2 1 . 1 2 Device 6 | . . . 2 2 1 . 1 . Storage 2 | 1 . . . . . . . 1 Processor 2 | . 1 . . . . . . 1 Hackware . | . . . . . . . . . Protection . | . . . . . . . . . Artifact . | . . . . . . . . . Weapon 18 | 3 1 . 5 4 1 2 2 . Energy Gun 16 | 2 1 . 5 4 1 1 2 . Energy Cannon . | . . . . . . . . . Ballistic Gun 1 | 1 . . . . . . . . Ballistic Cannon . | . . . . . . . . . Launcher 1 | . . . . . . 1 . . Special Weapon . | . . . . . . . . . Impact Weapon . | . . . . . . . . . Slashing Weapon . | . . . . . . . . . Piercing Weapon . | . . . . . . . . . Special Melee Weapon . | . . . . . . . . . Unidentified Prototypes . | . . . . . . . . . Parts Lost 14 | . . . . 4 . 7 . 3 Power 3 | . . . . 1 . 1 . 1 Propulsion 3 | . . . . 1 . 2 . . Utility 1 | . . . . . . 1 . . Weapon 7 | . . . . 2 . 3 . 2 Highest Loss Streak 4 | . . . . 1 . 4 . 2 To Critical Strikes . | . . . . . . . . . Average Slot Usage (%) 71 | . 73 85 95 96 92 36 28 18 Engine 2 | . . . 8 2 . . . . Core 3 | . . . . 6 7 3 7 3 Leg 22 | . 28 28 30 34 30 11 . . Device 9 | . . . 2 16 23 4 7 7 Storage 7 | . 14 14 11 9 7 3 . 1 Processor 2 | . 2 14 8 . . . . 1 Energy Gun 21 | . 28 28 32 26 23 8 13 3 Peak Build Rating 33 | 5 6 6 14 28 33 33 16 16 Average Rating 15 | 3 5 6 11 24 28 12 15 9 On Entrance 11 | . 5 6 6 14 21 33 1 16 Naked Turns 86 | . . . . . . 86 . . Heaviest Build 26 | 8 8 8 20 23 26 26 17 17 Greatest Support 60 | 20 20 20 33 50 60 60 3 3 Greatest Overweight (x) 5 | . . . . . . 5 5 5 Average Overweight (x) . | . . . . . . . 4 . Largest Inventory Capacity 8 | 8 8 8 8 8 8 8 5 5 Average Capacity 7 | 7 8 8 8 8 8 6 5 5 Most Carried 8 | 6 8 8 8 8 8 8 4 5 Average Carried 6 | 3 6 8 7 7 7 5 2 3 Final Capacity 8 | 8 8 8 8 8 8 5 5 5 Final Carried 8 | 5 8 8 8 8 8 5 2 5 Class Distribution -------------------- 46% | Mutant 20% | Scavenger-Skirmisher 15% | Scavenger-Gunner 14% | Gunner Dominant Class ---------------- Mutant | -10/Materials Mutant | -10/Mines Gunner | -9/Materials Scavenger-Skirmisher | -8/Materials Scavenger-Gunner | -7/Factory Mutant | -7/Waste Mutant | -7/Factory Mutant | -7/Lower Caves Resources | -11 -10 -10 -9 -8 -7 -7 -7 -7 ----------- Run | Yrd Mat Min Mat Mat Fac Was Fac Low Matter Collected 764 | 103 38 . 58 359 45 . . 161 Remotely . | . . . . . . . . . Salvage Created 1099 | . 50 . 184 737 68 . . 60 Parts 56 | . 7 . 12 31 5 . . 1 Haulers Intercepted . | . . . . . . . . . Recyclers Shooed . | . . . . . . . . . Parts Field Recycled . | . . . . . . . . . Retrieved Matter . | . . . . . . . . . Parts Self-Destructed 4 | . . . . . . . . 4 Prevented 1 | . . . . . . . . 1 Kills | -11 -10 -10 -9 -8 -7 -7 -7 -7 ------- Run | Yrd Mat Min Mat Mat Fac Was Fac Low Combat Hostiles Destroyed 22 | . 3 . 4 14 1 . . . Guns 20 | . 3 . 4 12 1 . . . AOE 2 | . . . . 2 . . . . Classes Destroyed 8 | . 1 . 2 2 2 . . 1 Operator 1 | . . . . . 1 . . . Watcher 2 | . . . 1 1 . . . . Swarmer 3 | . 3 . . . . . . . Grunt 15 | . . . 4 11 . . . . Duelist 1 | . . . . 1 . . . . Sentry 2 | . . . . 2 . . . . Hunter 1 | . . . . . 1 . . . Samaritan 1 | . . . . . . . . 1 Best Kill Streak 3 | . 3 . 3 3 1 . . . Combat Bots Only 3 | . 3 . 2 3 1 . . . Max Kills in Single Turn 2 | . 1 . 1 2 1 . . 1 Gunslinging 1 | . . . . 1 . . . . Exploded 1 | . . . . 1 . . . . Melee . | . . . . . . . . . Uniques/NPCs Destroyed . | . . . . . . . . . Combat | -11 -10 -10 -9 -8 -7 -7 -7 -7 -------- Run | Yrd Mat Min Mat Mat Fac Was Fac Low Hostile Shots Fired 260 | . 22 . 16 75 6 7 . 134 Missed 92 | . 8 . 5 22 2 1 . 54 Damage Taken 2133 | . 112 . 122 878 43 241 . 737 Core 882 | . 16 . 24 131 . 176 . 535 Absorbed by Shields . | . . . . . . . . . Core Remaining (%) 90 | 100 . 93 94 76 . . . . Volleys Fired 67 | . 10 . 10 34 3 4 . 6 Largest 3 | . 2 . 3 3 3 3 . 2 Hottest 185 | . 80 . 155 185 185 185 . 110 Shots Fired 177 | . 20 . 28 98 8 11 1 11 Gun 177 | . 20 . 28 98 8 11 1 11 Cannon . | . . . . . . . . . Launcher . | . . . . . . . . . Special . | . . . . . . . . . Kinetic . | . . . . . . . . . Thermal 101 | . 20 . 15 54 5 7 . . Explosive . | . . . . . . . . . Electromagnetic 76 | . . . 13 44 3 4 1 11 Robot Hit Streak 11 | . 3 . 3 11 3 4 . 9 Robot Miss Streak 5 | . 3 . 4 4 1 5 . 3 Penetration Max . | . . . . . . . . . Secondary Targets 1 | . . . . 1 . . . . Max Gunslinging Chain 1 | . . . . 1 . . . . Shots Hit Robots 111 | . 8 . 15 66 5 10 . 7 Core Hits 89 | . 3 . 11 63 5 4 . 3 Critical Kills . | . . . . . . . . . Critical Parts Destroyed . | . . . . . . . . . Critical Strikes . | . . . . . . . . . Melee Attacks . | . . . . . . . . . Impact . | . . . . . . . . . Slashing . | . . . . . . . . . Piercing . | . . . . . . . . . Sneak Attacks . | . . . . . . . . . Combat Hostiles . | . . . . . . . . . Follow-up Attacks . | . . . . . . . . . Damage Inflicted 1958 | . 93 . 233 1261 108 119 . 144 Guns 1813 | . 91 . 191 1162 108 119 . 142 Cannons . | . . . . . . . . . Explosions 127 | . . . 42 85 . . . . Melee . | . . . . . . . . . Ramming 18 | . 2 . . 14 . . . 2 Kinetic . | . . . . . . . . . Thermal 1073 | . 91 . 129 686 55 112 . . Explosive . | . . . . . . . . . Electromagnetic 867 | . . . 104 561 53 7 . 142 Impact . | . . . . . . . . . Slashing . | . . . . . . . . . Piercing . | . . . . . . . . . Highest Corruption 13 | . . . 1 . . 13 13 13 Average Corruption 10 | . . . 1 . . 9 13 13 Corruption Purged . | . . . . . . . . . Corruption Blocked . | . . . . . . . . . Effects 28 | . . . . . . 7 7 14 Message Errors 5 | . . . . . . 1 1 3 Matter Fused 9 | . . . . . . 1 2 6 Heat Flow Errors 2 | . . . . . . 1 1 . Energy Discharges 4 | . . . . . . 2 . 2 Parts Rejected 1 | . . . . . . . . 1 Parts Fused 1 | . . . . . . 1 . . Data Loss (minor) 1 | . . . . . . . . 1 Data Loss (major) 2 | . . . . . . . 2 . Misfires 1 | . . . . . . . 1 . Misdirections 2 | . . . . . . 1 . 1 Overload Shots . | . . . . . . . . . Overflow Damage 32 | . . . 12 20 . . . . Projectiles . | . . . . . . . . . Explosions 32 | . . . 12 20 . . . . Melee . | . . . . . . . . . Knockbacks . | . . . . . . . . . Impact . | . . . . . . . . . Kinetic . | . . . . . . . . . Secondary . | . . . . . . . . . Self-Inflicted Damage 41 | . . . . 40 . . . 1 Shots 1 | . . . . 1 . . . . Rammed 2 | . . . . . . . . 2 Targets Rammed 7 | . 1 . . 4 . . . 2 Kicked 5 | . 1 . . 4 . . . . Crushed . | . . . . . . . . . Highest Temperature 404 | . 27 . 344 404 132 132 251 81 Average Temperature 111 | . 12 . 139 136 53 52 129 34 Received Heat Transfer 759 | . . . 66 513 . . . 180 Effects 4 | . . . 2 2 . . . . Shutdowns 1 | . . . 1 . . . . . Energy Bleed 2 | . . . . 2 . . . . Interference 1 | . . . 1 . . . . . Siege Activations . | . . . . . . . . . Robots Corrupted . | . . . . . . . . . Combat Hostiles . | . . . . . . . . . Parts Fried 7 | . . . . 2 . . . 5 Impact Corruptions . | . . . . . . . . . Robots Melted . | . . . . . . . . . Combat Hostiles . | . . . . . . . . . Parts Melted 3 | . 1 . . 2 . . . . Heat Transferred 1769 | . 200 . 258 1021 87 203 . . Parts Sabotaged . | . . . . . . . . . Parts Stolen . | . . . . . . . . . Parts Stripped . | . . . . . . . . . Power Chain Reactions 3 | . . . 1 2 . . . . Alert | -11 -10 -10 -9 -8 -7 -7 -7 -7 ------- Run | Yrd Mat Min Mat Mat Fac Was Fac Low Peak Influence 423 | . 85 33 179 423 151 52 10 . Initial 86 | . . 33 12 75 86 52 10 . Average 114 | . 66 33 94 256 94 15 10 . Maximum Alert Level 2 | . . . . 2 . . . . Low Security (%) 81 | 100 100 100 100 34 100 100 100 . Level 1 16 | . . . . 60 . . . . Level 2 1 | . . . . 5 . . . . Level 3 . | . . . . . . . . . Level 4 . | . . . . . . . . . Level 5 . | . . . . . . . . . High Security . | . . . . . . . . . Max Security . | . . . . . . . . . Squads Dispatched 3 | . . . 2 1 . . . . Investigation 1 | . . . 1 . . . . . Extermination . | . . . . . . . . . Reinforcement 2 | . . . 1 1 . . . . Assault . | . . . . . . . . . Garrison . | . . . . . . . . . Intercept . | . . . . . . . . . Searches Triggered . | . . . . . . . . . Construction Impeded . | . . . . . . . . . Haulers Reinforced . | . . . . . . . . . Active Scanning Responses . | . . . . . . . . . Cargo Convoy Interrupts . | . . . . . . . . . Stealth | -11 -10 -10 -9 -8 -7 -7 -7 -7 --------- Run | Yrd Mat Min Mat Mat Fac Was Fac Low Distress Signals 1 | . 1 . . . . . . . Communications Jammed . | . . . . . . . . . Distress Signals . | . . . . . . . . . Times Spotted 49 | . 4 . 6 26 3 6 . 4 Peak Tracking Total 6 | . 3 . 3 5 1 6 . 2 Tactical Retreats 2 | . . . . 1 . . . 1 Traps | -11 -10 -10 -9 -8 -7 -7 -7 -7 ------- Run | Yrd Mat Min Mat Mat Fac Was Fac Low Traps Triggered 1 | . . . . . 1 . . . Indirectly . | . . . . . . . . . Trap Hack Attempts . | . . . . . . . . . Triggered . | . . . . . . . . . Disarmed . | . . . . . . . . . Reprogrammed . | . . . . . . . . . Reused . | . . . . . . . . . Traps Extracted . | . . . . . . . . . Installed . | . . . . . . . . . Triggered 2 | . . . . . . . . 2 Machines | -11 -10 -10 -9 -8 -7 -7 -7 -7 ---------- Run | Yrd Mat Min Mat Mat Fac Was Fac Low Machines Disabled 5 | . . . 2 3 . . . . Max in Single Turn 2 | . . . 1 2 . . . . Machines Repaired . | . . . . . . . . . Machines Dismantled . | . . . . . . . . . Machines Sabotaged . | . . . . . . . . . Overloaded Fab Kills . | . . . . . . . . . Hacking | -11 -10 -10 -9 -8 -7 -7 -7 -7 --------- Run | Yrd Mat Min Mat Mat Fac Was Fac Low Machines Accessed 8 | . . . 1 4 2 . 1 . Terminals 6 | . . . 1 4 1 . . . Fabricators . | . . . . . . . . . Repair Stations . | . . . . . . . . . Recycling Units . | . . . . . . . . . Scanalyzers 1 | . . . . . 1 . . . Garrison Access 1 | . . . . . . . 1 . Total Hacks 21 | . . . 2 13 4 . 2 . Successful 9 | . . . . 7 2 . . . Failed 12 | . . . 2 6 2 . 2 . Catastrophic 3 | . . . 2 1 . . . . Database Lockouts . | . . . . . . . . . Manual 4 | . 1 . 2 1 . . . . Terminals 17 | . . . 2 13 2 . . . Fabricators . | . . . . . . . . . Repair Stations . | . . . . . . . . . Recycling Units . | . . . . . . . . . Scanalyzers 2 | . . . . . 2 . . . Garrison Access 2 | . . . . . . . 2 . Terminal Hacks 8 | . . . . 7 1 . . . Record 2 | . . . . 2 . . . . Open DSF 1 | . . . . . 1 . . . Branch Access Points 1 | . . . . 1 . . . . Emergency Access Points 1 | . . . . 1 . . . . Alert Level 1 | . . . . 1 . . . . Unreport Threat 1 | . . . . 1 . . . . Zone Layout 1 | . . . . 1 . . . . Fabricator Hacks . | . . . . . . . . . Repair Station Hacks . | . . . . . . . . . Recycling Unit Hacks . | . . . . . . . . . Scanalyzer 1 | . . . . . 1 . . . Insert Component 1 | . . . . . 1 . . . Garrison Access Hacks . | . . . . . . . . . Unauthorized Hacks . | . . . . . . . . . Terminals . | . . . . . . . . . Fabricators . | . . . . . . . . . Repair Stations . | . . . . . . . . . Recycling Units . | . . . . . . . . . Scanalyzers . | . . . . . . . . . Garrison Access . | . . . . . . . . . Data Cores Recovered 1 | . . . . . 1 . . . Used . | . . . . . . . . . Hacking Detections 6 | . . . 1 3 1 . 1 . Full Trace Events 2 | . . . 1 1 . . . . Feedback Events 1 | . . . 1 . . . . . Corruption 1 | . . . 1 . . . . . Feedback Blocked . | . . . . . . . . . Robot Schematics Acquired . | . . . . . . . . . Robots Built . | . . . . . . . . . Authchips . | . . . . . . . . . Time . | . . . . . . . . . Total Robot Build Rating . | . . . . . . . . . Part Schematics Acquired . | . . . . . . . . . Parts Built . | . . . . . . . . . Authchips . | . . . . . . . . . Time . | . . . . . . . . . Total Part Build Rating . | . . . . . . . . . Parts Repaired . | . . . . . . . . . Time . | . . . . . . . . . Parts Recycled . | . . . . . . . . . Recycled Matter . | . . . . . . . . . Retrieved Matter . | . . . . . . . . . Retrieved Components . | . . . . . . . . . Parts Scanalyzed . | . . . . . . . . . Part Schematics Acquired . | . . . . . . . . . Parts Damaged . | . . . . . . . . . Bothacking | -11 -10 -10 -9 -8 -7 -7 -7 -7 ------------ Run | Yrd Mat Min Mat Mat Fac Was Fac Low Used RIF Installer . | . . . . . . . . . Robots Hacked . | . . . . . . . . . Non-combat . | . . . . . . . . . Combat . | . . . . . . . . . Robot Hacks Applied . | . . . . . . . . . Relay Couplers Released . | . . . . . . . . . Fabnet Peak Effective % . | . . . . . . . . . Robots Rewired . | . . . . . . . . . Allies Hacked . | . . . . . . . . . Hacks Repelled . | . . . . . . . . . Allies | -11 -10 -10 -9 -8 -7 -7 -7 -7 -------- Run | Yrd Mat Min Mat Mat Fac Was Fac Low Total Allies . | . . . . . . . . . Largest Group . | . . . . . . . . . Highest-Rated Group . | . . . . . . . . . Highest-Rated Ally . | . . . . . . . . . Total Orders . | . . . . . . . . . Ally Attacks . | . . . . . . . . . Total Damage . | . . . . . . . . . Kills . | . . . . . . . . . Allies Corrupted . | . . . . . . . . . Allies Melted . | . . . . . . . . . Intel | -11 -10 -10 -9 -8 -7 -7 -7 -7 ------- Run | Yrd Mat Min Mat Mat Fac Was Fac Low Robot Analysis Total . | . . . . . . . . . Derelict Logs Recovered 1 | . . 1 . . . . . . Drone Launches . | . . . . . . . . . Drone Recoveries . | . . . . . . . . . Exploration | -11 -10 -10 -9 -8 -7 -7 -7 -7 ------------- Run | Yrd Mat Min Mat Mat Fac Was Fac Low Turns Passed 2309 | 65 251 120 370 555 273 186 182 307 Spaces Moved 1649 | 42 176 101 251 286 165 242 56 330 Core 568 | 8 . . . . . 174 56 330 Treads . | . . . . . . . . . Legs 1027 | 34 176 101 251 286 165 14 . . Wheels 54 | . . . . . . 54 . . Hover . | . . . . . . . . . Flight . | . . . . . . . . . Fastest Speed 50 | 50 120 120 120 120 120 50 250 50 Average Speed 110 | 106 120 120 120 120 120 67 293 81 Slowest Speed 300 | 120 120 120 120 120 120 300 300 300 Overloaded Moves . | . . . . . . . . . Propulsion Burnouts . | . . . . . . . . . Robots Hopped . | . . . . . . . . . Cave-ins Triggered . | . . . . . . . . . Exploration Rate (%) 28 | 4 30 25 32 29 6 92 2 35 Regions Visited 8 Branch Regions 2 Pre-discovered Areas 1 | . . 1 . . . . . . Known Exits Taken 2 | . 1 1 . . . . . . Unknown Exits Taken 4 | 1 . . 1 1 . . 1 . Scrap Searched 4 | . . . . . . . . 4 Spaces Dug . | . . . . . . . . . Terrain Destroyed 15 | . . . . 15 . . . . Melee . | . . . . . . . . . Projectile . | . . . . . . . . . AOE 15 | . . . . 15 . . . . Terrain Rammed . | . . . . . . . . . Walls Destroyed . | . . . . . . . . . Machines Disabled . | . . . . . . . . . Actions | -11 -10 -10 -9 -8 -7 -7 -7 -7 --------- Run | Yrd Mat Min Mat Mat Fac Was Fac Low Total 2000 | 62 194 100 302 424 234 255 75 354 Wait 164 | 4 3 . 7 61 58 6 15 10 Move 1642 | 41 175 100 250 285 165 241 55 330 Hop . | . . . . . . . . . Pick Up 38 | 10 3 . 8 9 3 1 1 3 Fast Attach 13 | . 1 . 3 5 1 . . 3 Attach 18 | 6 . . 2 1 2 3 4 . Detach 1 | 1 . . . . . . . . Swap 21 | . 1 . 8 11 1 . . . Drop 29 | . . . 14 14 1 . . . Fire 67 | . 10 . 10 34 3 4 . 6 Melee . | . . . . . . . . . Ram 2 | . . . . . . . . 2 Kick 5 | . 1 . . 4 . . . . Crush . | . . . . . . . . . Escape Stasis . | . . . . . . . . . Rewire . | . . . . . . . . . Trap . | . . . . . . . . . Miscellaneous . | . . . . . . . . . Route ------- -11/Scrapyard -10/Materials -10/Mines -9/Materials -8/Materials -7/Factory -7/Waste -7/Factory -7/Lower Caves History --------- Turn | Location | Event 2 | -11/Scrapyard | Met Revision 17 4 | -11/Scrapyard | Discovered new exit (range 16) 66 | -11/Scrapyard | Entered Materials 299 | -10/Materials | Discovered new exit (range 15) 306 | -10/Materials | Build established: Mutant 315 | -10/Materials | Identified exit to Mines 317 | -10/Materials | Entered Mines 416 | -10/Mines | Discovered new exit (range 8) 429 | -10/Mines | Learned location of Zion (-6) 436 | -10/Mines | Identified exit to Materials 437 | -10/Mines | Entered Materials 437 | -9/Materials | Evolved 2 slots: Propulsion x1, Weapon x1 801 | -9/Materials | Discovered new exit (range 3) 807 | -9/Materials | Entered another Materials area 807 | -8/Materials | Evolved 2 slots: Propulsion x1, Utility x1 1269 | -8/Materials | Build established: Scavenger-Skirmisher 1341 | -8/Materials | Discovered new exit (range 16) 1362 | -8/Materials | Entered Factory 1362 | -7/Factory | Evolved 2 slots: Propulsion x1, Utility x1 1635 | -7/Factory | Sucked down chute 1635 | -7/Factory | Entered Waste 1644 | -7/Waste | Spotted C-40 Crusher 1650 | -7/Waste | EMP discharged 1665 | -7/Waste | Build established: Scavenger-Gunner 1666 | -7/Waste | Crushed by Compactor (1 part destroyed, 1 dropped) 1669 | -7/Waste | Crushed by Compactor (1 part destroyed, 1 dropped) 1672 | -7/Waste | Crushed by Compactor (1 part destroyed, 2 dropped) 1703 | -7/Waste | Lost 4 parts (2n1u1w) 1711 | -7/Waste | Spotted C-40 Crusher 1714 | -7/Waste | Spotted C-40 Crusher 1728 | -7/Waste | Crushed by Compactor (1 part destroyed, 2 dropped) 1731 | -7/Waste | Crushed by Compactor (1 part destroyed, 2 dropped) 1735 | -7/Waste | Crushed by Compactor (1 part destroyed, 1 dropped) 1750 | -7/Waste | EMP discharged 1750 | -7/Waste | System corruption reached 10% 1766 | -7/Waste | Lost 3 parts (1p2w) 1768 | -7/Waste | Spotted C-40 Crusher 1785 | -7/Waste | Spotted C-40 Crusher 1788 | -7/Waste | Spotted C-40 Crusher 1801 | -7/Waste | Discovered new exit (range 12) 1821 | -7/Waste | Entered Factory 1946 | -7/Factory | Discovered new exit (range 16) 1974 | -7/Factory | Build established: Mutant 2003 | -7/Factory | Entered Lower Caves 2103 | -7/Lower Caves | Attracted the attention of an 0b10 checkpoint 2112 | -7/Lower Caves | Core integrity fell below 50% 2198 | -7/Lower Caves | Core integrity fell below 20% 2231 | -7/Lower Caves | Encountered a Warlord checkpoint 2307 | -7/Lower Caves | Lost 3 allies 2310 | -7/Lower Caves | Destroyed by Y-54 Guardian with Gatling Laser Last Messages --------------- 6E-A0L(M): "Unaware activity is slow around here lately. Bring on the action!" System corrupted: Matter fused (-6). Searching scrap... Found Targeting Computer. Found Med. Matter Pod. Found ECM Suite. Found Hvy. Mace. Found 33 Matter. Acquired 6 matter. Acquired Targeting Computer. Acquired 10 matter. Acquired Com. Battery. Acquired 10 matter. System corrupted: Matter fused (-7). Acquired Mic. Nuclear Core. System corrupted: Matter fused (-10). Acquired 27 matter. Mic. Nuclear Core destroyed. D>JW4VL/LCNCPQH9VT/PBLGM5TJ/NF9N2 Map ----- +----------------------------------------------------+ | ?????????????????????????????????????????????????? | | ?????????????????????????????????????????????????? | | ?????????????????????????????????????????????????? | | ?????????????????????????????????????????????????? | | ?????????????????????????????????????????????????? | | ?????????????????????????????????????????????????? | | ?????????????????????????????????????????????????? | | ?????????????????????????????????????????????##### | | ?????????????????????????????????????????????#"""" | | ?????????????????????????????????????????????#"" | | ?????????????????????????????????????????????#" " | | ?????????????????????????????????????????????##" | | ?????? ###???????????????????????????????????##" | | ?????? ##????????????????????????????????###" " | | ????? #?????#####?????????????????????## | | ##?## #?????# ##???????????????????## | | ## #???????# #????????????###????# | | #?????##### ############## ##?## | | #?????## ## # ### | | ?###??## ## ## ## | | #?## ### # " "" ### ## | | ! #?## ## "" """"! #?### #### | | #???# Y ## "" """% #???#####??## | | /#???### # ## " " ####????????### | | ###???## ## # ##########?## | | #????## %####### @ #??? | | #?????##!#?############ #### #??? | | ###????# ### #??????## ##?# ####### #??# | | ##???#%## ##??????## #?# #?????# #?## | | #####!## ##??????## ### ##?????# ### | | * #???????# % #??????# | | %= #??????# ### #??????# | | ########## ##?????# #?## #???#### | | ## ##???????## ##???????# ##??# #???# | | #######?######## ##?###???# ##???# ##??## ##### | | #####?### ## ### ##?## #????# ##### ##??# | | # ### ^ !!! ### #???## #??? | | ## # #??## ##?? | | ## ####### #### ### | | #### #????## | | #??### ##????# | | #????## ##?????# ####### | | #????# ##?????## ##?????## ### | | #???# ##??????# #???????## ##?## | | # ??## ##???????## #???????# #???## | | ? #??# ##????????## #???????# #????# | | ? ##?## ###???????# ##???????# #???### | | ? #?## ##?????? #????????## #??### | | ? #?# #??????# ##?????????######??# | | ? #?## #??????####??????????????????# | +----------------------------------------------------+ Best States ------------- Heat Dissipation 48 Energy Generation 15 Energy Capacity 350 Matter Stores 300 Matter Capacity 300 Sight Range 16 Robot Scan Range 15 Terrain Scan Density 10 ECM Strength 2 Evasion (%) 55 Targeting Accuracy 5 Particle Charging 15 Item Schematics ----------------- None Robot Schematics ------------------ None Fabricated ------------ Nothing Alien Tech Used ----------------- None Achievements -------------- None Challenges ------------ None Game ------ Seed HardcellPitchforkNanovents Manual? 0 Play Time 00:32:24 Cumulative 14.3 hours Start 2025.03.05 @ 16:00:09 End 2025.03.05 @ 16:42:18 Sessions 1 Manual Loads 0 Difficulty Rogue Special Mode None Game No. 38 Rogue 35 Adventurer 1 Explorer 2 Win Type - Total 0 Types 0/0/0/0/0/0/0/0/0 Lore% 13 Gallery% 20 Achievement% 19 Wizard Run 0 Options --------- Layout 1 ASCII 0 Keyboard 0 Movement Numpad Keybinds 0 Fullscreen 1 Font 48/Smallcaps Map View 50x35 Zoom Use 0% Tactical HUD 0 Map Filters NONE Filters NONE Steam 1 RUN: 9a04531c-7055-472f-9bd0-b722962d488c